Workbook

Sheet Control
A1: Fixed Arithmetic Calendar Cycles and their Ford Circles | O1: Version 7.11(187), Revised 2022.06.23
A2: by Dr. Irv Bromberg, University of Toronto, Canada | K2: TRUE
A3: http://individual.utoronto.ca/kalendis/leap/#ford | F3: Circle Factor: | G3: 45000 | H3: (hover to see red-tag comments)
K4: Max | L4: Long Mixer | N4: Short Mixer
B5: Floor of | C5: Mean Year Limits | E5: Range | F5: Days per | G5: Days per | H5: Length of | I5: Months per | J5: Months per | K5: Years/ | L5: Leaps/ | M5: Years/ | N5: Leaps/ | O5: Years/
A6: Click Desired Cycle Type | B6: Mean Year | C6: Longest | D6: Shortest | E6: m:ss | F6: Short Year | G6: Long Year | H6: Leap Unit | I6: Short Year | J6: Long Year | K6: Cycle | L6: Cycle | M6: Cycle | N6: Cycle | O6: Cycle
B7: 365 days | C7: 05:50:00 | D7: 05:47:30 | E7: =C7-D7 -> 00:02:30 | F7: 365 | G7: 366 | H7: =IF(isLeapLong(),G7-F7,F7-G7) -> +1 | I7: 12 | J7: 12 | K7: 450 | L7: =Mixers(B7,C7,D7,F7,H7) -> 1 | M7: 4 | N7: 6 | O7: 25
B8: 365 days | C8: 05:50:00 | D8: 05:47:35 | E8: =C8-D8 -> 00:02:25 | F8: 365 | G8: 370 | H8: +5 | I8: 12 | J8: 12 | K8: 1000 | L8: =Mixers(B8,C8,D8,F8,H8) -> 2 | M8: 41 | N8: 1 | O8: 21
B9: 365 days | C9: 05:50:00 | D9: 05:47:35 | E9: 00:02:25 | F9: 360 | G9: 366 | H9: +6 | I9: 12 | J9: 12 | K9: 1100 | L9: =Mixers(B9,C9,D9,F9,H9) -> 7 | M9: 8 | N9: 69 | O9: 79
B10: 365 days | C10: 05:49:55 | D10: 05:47:35 | E10: 00:02:20 | F10: 364 | G10: 371 | H10: +7 | I10: 12 | J10: 12 | K10: 1000 | L10: =Mixers(B10,C10,D10,F10,H10) -> 8 | M10: 45 | N10: 3 | O10: 17
B11: 365 days | C11: 05:49:50 | D11: 05:47:35 | E11: 00:02:15 | F11: 360 | G11: 368 | H11: +8 | I11: 15 | J11: 15 | K11: 1000 | L11: =Mixers(B11,C11,D11,F11,H11) -> 2 | M11: 3 | N11: 17 | O11: 26
B12: 365 days | C12: 05:50:00 | D12: 05:47:35 | E12: 00:02:25 | F12: 360 | G12: 370 | H12: +10 | I12: 12 | J12: 12 | K12: 1500 | L12: =Mixers(B12,C12,D12,F12,H12) -> 43 | M12: 82 | N12: 11 | O12: 21
B13: 365 days | C13: 05:50:00 | D13: 05:47:05 | E13: 00:02:55 | F13: =19*I13 -> 361 | G13: =19*J13 -> 380 | H13: +19 | I13: 19 | J13: 20 | K13: 2000 | L13: =Mixers(B13,C13,D13,F13,H13) -> 21 | M13: 94 | N13: 2 | O13: 9
B14: 365 days | C14: 05:49:55 | D14: 05:47:35 | E14: 00:02:20 | F14: =28*I14 -> 364 | G14: =28*J14 -> 392 | H14: +28 | I14: 13 | J14: 14 | K14: 2500 | L14: =Mixers(B14,C14,D14,F14,H14) -> 2 | M14: 45 | N14: 7 | O14: 158
B15: 365 days | C15: 05:50:00 | D15: 05:46:55 | E15: 00:03:05 | F15: =30*I15 -> 360 | G15: =30*J15 -> 390 | H15: +30 | I15: 12 | J15: 13 | K15: 2500 | L15: =Mixers(B15,C15,D15,F15,H15) -> 7 | M15: 40 | N15: 11 | O15: 63
B16: 365 days | C16: 05:50:05 | D16: 05:47:15 | E16: 00:02:50 | F16: =I16*ABS(H16) -> 354.3669955 | G16: =J16*ABS(H16) -> 383.8975785 | H16: =(29+FPC/MPC)*SIGN(H7) -> 29.53058296 | I16: 12 | J16: 13 | K16: 2000 | L16: =Mixers(B16,C16,D16,F16,H16) -> 7 | M16: 19 | N16: 102 | O16: 277
B17: 668 sols | C17: 14:20:00 | D17: 14:04:00 | E17: 00:16:00 | F17: 668 | G17: 669 | H17: =IF(isLeapLong(),G17-F17,F17-G17) -> +1 | I17: 24 | J17: 24 | K17: 200 | L17: =Mixers(B17,C17,D17,F17,H17) -> 3 | M17: 5 | N17: 7 | O17: 12
B18: 668 sols | C18: 14:20:00 | D18: 14:02:55 | E18: =C18-D18 -> 00:17:05 | F18: =24*28-7 -> 665 | G18: =24*28 -> 672 | H18: =IF(isLeapLong(),G18-F18,F18-G18) -> +7 | I18: 24 | J18: 24 | K18: 500 | L18: =Mixers(B18,C18,D18,F18,H18) -> 18 | M18: 35 | N18: 1 | O18: 2
B19: 668 sols | C19: 14:20:00 | D19: 14:02:55 | E19: 00:17:05 | F19: 644 | G19: =24*28 -> 672 | H19: =IF(isLeapLong(),G19-F19,F19-G19) -> +28 | I19: 23 | J19: 24 | K19: 1000 | L19: =Mixers(B19,C19,D19,F19,H19) -> 29 | M19: 33 | N19: 7 | O19: 8
C21: Maximum Haros Denominator: | D21: 99 | E21: <http://en.wikipedia.org/w/index.php?title=Charles_Haros> | K21: Max | L21: Long Mixer | N21: Short Mixer
B22: Floor of | C22: Mean Month Limits | E22: Range | F22: Days per | G22: Days per | H22: Days per | I22: Months per | J22: Months per | K22: Months / | L22: Full / | M22: Months | N22: Full / | O22: Months
B23: Mean Month | C23: Longest | D23: Shortest | E23: (secs) | F23: Short Yerm | G23: Long Yerm | H23: 49 Months | I23: Short Yerm | J23: Long Yerm | K23: Cycle | L23: Cycle | M23: / Cycle | N23: Cycle | O23: / Cycle
B24: 29 days | C24: 12:44:04 | D24: =191/360 -> 12:44:00 | E24: =86400*(C24-D24) -> 4.0 | F24: =(INT(I24/2)+1)*30+INT(I24/2)*29 -> 443 | G24: =(INT(J24/2)+1)*30+INT(J24/2)*29 -> 502 | H24: =2*G24+F24 -> 1447 | I24: 15 | J24: 17 | K24: 2000 | L24: =Mixers(B24,C24,D24,F24,G24-F24) -> 26 | M24: 49 | N24: 191 | O24: 360
A27: § Set the Mean Month | C27: Full Months | D27: Months | F27: Days | G27: Yerms | O27: =G28&" yerms, mean month = 29d "&ExactTime(FPC,MPC)&" = 29+"&ReduceFraction(C28,D28,FALSE,FALSE,TRUE)&" days " -> 341 yerms, mean month = 29d 12h 44m 2+82/223s = 29+2958/5575 days
A28: for Lunisolar Cycles: | B28: Per Cycle: | C28: 2958 | D28: 5575 | F28: =FPC*30+(MPC-FPC)*29 -> 164633 | G28: =2*F28-59*MPC -> 341 | O28: =" or about 29."&MID(FPC/MPC,3,20)&" days or about 29d "&TEXT(FPC/MPC,"HH:MM:SS.000 ") -> or about 29.530582959641256 days or about 29d 12:44:02.368
B30: or click on a preset cycle:
A33: http://en.wikipedia.org/wiki/Ford_circle | D33: http://precollegiate.stanford.edu/circle/math/FareyFord.pdf | O33: <http://mathworld.wolfram.com/FordCircle.html>

Sheet Sun
D1: Maximum Years Per Cycle: | E1: 1000 | G1: Length of… | H1: sols | I1: months
D2: Count of Cycles Listed Below: | E2: =COUNTIF(C:C,">0") -> 0 | G2: …Short Year: | H2: 644 | I2: 23
D3: Count of Visible Cycles: | E3: =CountVisible("Sun",13,3) -> 0 | G3: …Long Year: | H3: 672 | I3: 24
A4: Fraction marked with x# indicates length is | G4: ...Leap Unit: | H4: 28 | I4: =LYM-SYM -> 1
A5: # times the equivalent skip sol calendar. | H5: Longest | I5: Shortest
G6: Mean Year Limits (fraction >668 sols) | H6: 14:20:00 | I6: 14:02:55
A10: The mediant fraction between a/c and b/d = (a+b) / (c+d). Circles touch only if bc – ad = 1.
A11: nth | B11: Long | C11: Years | D11: Mixers | F11: Cycle Mean | G11: Mean Year >668 sols | I11: Decimal | J11: Sols per | K11: SymLeap | M11: Average Leap
A12: Order | B12: /cycle | C12: /cycle | D12: 33 | E12: 8 | F12: Year (sols) | G12: Decimal | H12: Exact Time | I12: Seconds | J12: Cycle | K12: U | L12: K | M12: Interval (years)

Sheet Pattern

Sheet Selected_LS_Cycles
A1: Selected Lunisolar Cycles
A3: Long | B3: Years | C3: Mixers | E3: Cycle Mean | F3: Mean Year >365 days | H3: Decimal | I3: Months per | J3: SymLeap | L3: Average Leap | M3: Solar : Lunar | N3: Solar, Lunar | O3: Lunar Cycle | P3: Whole
A4: /cycle | B4: /cycle | C4: 19 | D4: 277 | E4: Year (days) | F4: Decimal | G4: Exact Time | H4: Seconds | I4: Cycle | J4: U | K4: K | L4: Interval (years) | M4: Months Ratio | N4: Months GCD | O4: Yerms | P4: #Weeks | Q4: Comments
A5: 734 | B5: 1993 | C5: 32 | D5: 5 | E5: 365+484/1993 | F5: =484/1993 -> 0.2428499749 | G5: 5h 49m 42+474/1993s | H5: =42+474/1993 -> 42.23783241 | I5: 24650 | J5: 1192 | K5: 996 | L5: 2+525/734 | M5: 29 : 1 | N5: 850 | O5: 52 | P5: =IF(MOD(ROUND(B5*(365+F5),2),7)=0,"Yes","") -> 
A6: 2901 | B6: 7877 | C6: 123 | D6: 20 | E6: 365+426386/1756571 | F6: =426386/1756571 -> 0.2427376975 | G6: 5h 49m 32+943388/1756571s | H6: =32+943388/1756571 -> 32.53706227 | I6: 97425 | J6: 2756 | K6: 3938 | L6: 2+2075/2901 | M6: 3897 : 223 | N6: 25 | O6: 341
A7: 2427 | B7: 6590 | C7: 99 | D7: 17 | E7: 365+17915/73808 | F7: =17915/73808 -> 0.2427243659 | G7: 5h 49m 31+1777/4613s | H7: =31+1777/4613 -> 31.38521569 | I7: 81507 | J7: 4263 | K7: 3295 | L7: 2+1736/2427 | M7: 807 : 56 | N7: 101 | O7: 346
A8: 2167 | B8: 5884 | C8: 91 | D8: 15 | E8: 365+318483/1312132 | F8: =318483/1312132 -> 0.2427217688 | G8: 5h 49m 31+52757/328033s | H8: =31+52757/328033 -> 31.16082833 | I8: 72775 | J8: 391 | K8: 2942 | L8: 2+1550/2167 | M8: 2911 : 223 | N8: 25 | O8: 341
A9: 2132 | B9: 5789 | C9: 86 | D9: 15 | E9: 365+1405/5789 | F9: =1405/5789 -> 0.2427016756 | G9: 5h 49m 29+2459/5789s | H9: =29+2459/5789 -> 29.42477112 | I9: 71600 | J9: 4244 | K9: 2894 | L9: 2+1525/2132 | M9: 10 : 1 | N9: 7160 | O9: 438 | Q9: 10 x 20 inex
A10: 1433 | B10: 3891 | C10: 59 | D10: 10 | E10: 365+210580/867693 | F10: =210580/867693 -> 0.2426895227 | G10: 5h 49m 28+108392/289231s | H10: =28+108392/289231 -> 28.37475928 | I10: 48125 | J10: 3500 | K10: 1945 | L10: 2+1025/1433 | M10: 1925 : 223 | N10: 25 | O10: 341
A11: 2817 | B11: 7649 | C11: 111 | D11: 20 | E11: 365+18563/76490 | F11: =18563/76490 -> 0.2426853183 | G11: 5h 49m 28+88/7649s | H11: =28+88/7649 -> 28.01150477 | I11: 94605 | J11: 4206 | K11: 3824 | L11: 2+2015/2817 | M11: 1113 : 10 | N11: 85 | O11: 52
A12: 987 | B12: 2680 | C12: 39 | D12: 7 | E12: 365+1691/6968 | F12: =1691/6968 -> 0.2426808266 | G12: 5h 49m 27+543/871s | H12: =27+543/871 -> 27.62342135 | I12: 33147 | J12: 763 | K12: 1340 | L12: 2+706/987 | M12: 261 : 13 | N12: 127 | O12: 101
A13: 1349 | B13: 3663 | C13: 47 | D13: 10 | E13: 365+987/4070 | F13: =987/4070 -> 0.2425061425 | G13: 5h 49m 12+216/407s | H13: =12+216/407 -> 12.53071253 | I13: 45305 | J13: 1097 | K13: 1831 | L13: 2+965/1349 | M13: 533 : 10 | N13: 85 | O13: 52
A14: 2561 | B14: 6954 | C14: 89 | D14: 19 | E14: 365+5059/20862 | F14: =5059/20862 -> 0.2424983223 | G14: 5h 49m 11+991/1159s | H14: =11+991/1159 -> 11.85504745 | I14: 86009 | J14: 1097 | K14: 3477 | L14: 2+1832/2561 | M14: 77 : 3 | N14: 1117 | O14: 205
A15: 3102 | B15: 8423 | C15: 108 | D15: 23 | E15: 365+40849/168460 | F15: =40849/168460 -> 0.2424848629 | G15: 5h 49m 10+5830/8423s | H15: =10+5830/8423 -> 10.69215244 | I15: 104178 | J15: 4760 | K15: 4211 | L15: 2+2219/3102 | M15: 291 : 20 | N15: 358 | O15: 438 | Q15: 291 inex
A16: 2287 | B16: 6210 | C16: 79 | D16: 17 | E16: 365+6776/27945 | F16: =6776/27945 -> 0.2424762927 | G16: 5h 49m 9+197/207s | H16: =9+197/207 -> 9.951690821 | I16: 76807 | J16: 5113 | K16: 3105 | L16: 2+1636/2287 | M16: 863 : 9 | N16: 89 | O16: 49 | P16: =IF(MOD(ROUND(B16*(365+F16),2),7)=0,"Yes","") -> 
A17: 2129 | B17: 5781 | C17: 71 | D17: 16 | E17: 365+18220/75153 | F17: =18220/75153 -> 0.2424387583 | G17: 5h 49m 6+17754/25051s | H17: =6+17754/25051 -> 6.708714223 | I17: 71501 | J17: 2528 | K17: 2890 | L17: 2+1523/2129 | M17: 563 : 13 | N17: 127 | O17: 101 | P17: =IF(MOD(ROUND(B17*(365+F17),2),7)=0,"Yes","") -> 
A18: 2923 | B18: 7937 | C18: 97 | D18: 22 | E18: 365+17317/71433 | F18: =17317/71433 -> 0.2424229698 | G18: 5h 49m 5+2735/7937s | H18: =5+2735/7937 -> 5.344588636 | I18: 98167 | J18: 1803 | K18: 3968 | L18: 2+2091/2923 | M18: 1103 : 9 | N18: 89 | O18: 49 | P18: =IF(MOD(ROUND(B18*(365+F18),2),7)=0,"Yes","") -> 
A19: 3587 | B19: 9740 | C19: 119 | D19: 27 | E19: 365+94447/389600 | F19: =94447/389600 -> 0.2424204312 | G19: 5h 49m 5+61/487s | H19: =5+61/487 -> 5.125256674 | I19: 120467 | J19: 1803 | K19: 4870 | L19: 2+2566/3587 | M19: 673 : 40 | N19: 179 | O19: 438 | Q19: 673 / 2 inex
A20: 3102 | B20: 8423 | C20: 108 | D20: 23 | E20: 365+38792/160037 | F20: =38792/160037 -> 0.2423939464 | G20: 5h 49m 2+133946/160037s | H20: =2+133946/160037 -> 2.836968951 | I20: 104178 | J20: 4760 | K20: 4211 | L20: 2+2219/3102 | M20: 291 : 19 | N20: 358 | O20: 416 | P20: =IF(MOD(ROUND(B20*(365+F20),2),7)=0,"Yes","") ->  | Q20: 291 inex
A21: 1964 | B21: 5333 | C21: 62 | D21: 15 | E21: 365+6463/26665 | F21: =6463/26665 -> 0.2423776486 | G21: 5h 49m 1+2287/5333s | H21: =1+2287/5333 -> 1.428839302 | I21: 65960 | J21: 2843 | K21: 2666 | L21: 2+1405/1964 | M21: 388 : 5 | N21: 170 | O21: 52
A22: 664 | B22: 1803 | C22: 22 | D22: 5 | E22: 365+437/1803 | F22: =437/1803 -> 0.2423738214 | G22: 5h 49m 1+59/601s | H22: =1+59/601 -> 1.098169717 | I22: 22300 | J22: 1078 | K22: 901 | L22: 2+475/664 | M22: 4 : 1 | N22: 5575 | O22: 341 | P22: Yes | Q22: 4 x 25 saros
A23: 1047 | B23: 2843 | C23: 33 | D23: 8 | E23: 365+689/2843 | F23: =689/2843 -> 0.2423496307 | G23: 5h 48m 59+23/2843s | H23: =59+23/2843 -> 59.00809005 | I23: 35163 | J23: 353 | K23: 1421 | L23: 2+749/1047 | M23: 9 : 1 | N23: 3907 | O23: 239
A24: 3587 | B24: 9740 | C24: 119 | D24: 27 | E24: 365+89691/370120 | F24: =89691/370120 -> 0.2423295148 | G24: 5h 48m 57+2499/9253s | H24: =57+2499/9253 -> 57.27007457 | I24: 120467 | J24: 1803 | K24: 4870 | L24: 2+2566/3587 | M24: 673 : 38 | N24: 179 | O24: 416 | Q24: 673 / 2 inex
A25: 1964 | B25: 5333 | C25: 62 | D25: 15 | E25: 365+3877/15999 | F25: =3877/15999 -> 0.2423276455 | G25: 5h 48m 57+579/5333s | H25: =57+579/5333 -> 57.10856929 | I25: 65960 | J25: 2843 | K25: 2666 | L25: 2+1405/1964 | M25: 136 : 3 | N25: 485 | O25: 89
A26: 2463 | B26: 6688 | C26: 75 | D26: 19 | E26: 365+12965/53504 | F26: =12965/53504 -> 0.2423183313 | G26: 5h 48m 56+127/418s | H26: =56+127/418 -> 56.30382775 | I26: 82719 | J26: 6335 | K26: 3344 | L26: 2+1762/2463 | M26: 117 : 8 | N26: 707 | O26: 346
A27: 2621 | B27: 7117 | C27: 83 | D27: 20 | E27: 365+384578/1587091 | F27: =384578/1587091 -> 0.2423162881 | G27: 5h 48m 56+202024/1587091s | H27: =56+202024/1587091 -> 56.12729201 | I27: 88025 | J27: 2490 | K27: 3558 | L27: 2+1875/2621 | M27: 3521 : 223 | N27: 25 | O27: 341
A28: 2579 | B28: 7003 | C28: 77 | D28: 20 | E28: 365+16969/70030 | F28: =16969/70030 -> 0.2423104384 | G28: 5h 48m 55+4355/7003s | H28: =55+4355/7003 -> 55.62187634 | I28: 86615 | J28: 4551 | K28: 3501 | L28: 2+1845/2579 | M28: 1019 : 10 | N28: 85 | O28: 52
A29: 1957 | B29: 5314 | C29: 61 | D29: 15 | E29: 365+287127/1185022 | F29: =287127/1185022 -> 0.2422967675 | G29: 5h 48m 54+261126/592511s | H29: =54+261126/592511 -> 54.44071081 | I29: 65725 | J29: 353 | K29: 2657 | L29: 2+1400/1957 | M29: 2629 : 223 | N29: 25 | O29: 341
A30: 636 | B30: 1727 | C30: 18 | D30: 5 | E30: 365+1255/5181 | F30: =1255/5181 -> 0.2422312295 | G30: 5h 48m 48+1344/1727s | H30: =48+1344/1727 -> 48.77822814 | I30: 21360 | J30: 687 | K30: 863 | L30: 2+455/636 | M30: 80 : 3 | N30: 267 | O30: 49
A31: 1142 | B31: 3101 | C31: 32 | D31: 9 | E31: 365+1395/5759 | F31: =1395/5759 -> 0.2422295537 | G31: 5h 48m 48+3648/5759s | H31: =48+3648/5759 -> 48.63344331 | I31: 38354 | J31: 687 | K31: 1550 | L31: 2+817/1142 | M31: 302 : 13 | N31: 127 | O31: 101
A32: 1852 | B32: 5029 | C32: 46 | D32: 15 | E32: 365+271449/1121467 | F32: =271449/1121467 -> 0.2420481387 | G32: 5h 48m 32+1075696/1121467s | H32: =32+1075696/1121467 -> 32.95918649 | I32: 62200 | J32: 334 | K32: 2514 | L32: 2+1325/1852 | M32: 2488 : 223 | N32: 25 | O32: 341
A33: 2439 | B33: 6623 | C33: 57 | D33: 20 | E33: 365+20840/86099 | F33: =20840/86099 -> 0.242046946 | G33: 5h 48m 32+73712/86099s | H33: =32+73712/86099 -> 32.85613073 | I33: 81915 | J33: 4304 | K33: 3311 | L33: 2+1745/2439 | M33: 645 : 13 | N33: 127 | O33: 101
A34: 2801 | B34: 7606 | C34: 65 | D34: 23 | E34: 365+8284/34227 | F34: =8284/34227 -> 0.242031145 | G34: 5h 48m 31+1867/3803s | H34: =31+1867/3803 -> 31.49092821 | I34: 94073 | J34: 5621 | K34: 3803 | L34: 2+2004/2801 | M34: 1057 : 9 | N34: 89 | O34: 49
A35: 485 | B35: 1317 | C35: 11 | D35: 4 | E35: 365+12749/52680 | F35: =12749/52680 -> 0.2420083523 | G35: 5h 48m 29+229/439s | H35: =29+229/439 -> 29.52164009 | I35: 16289 | J35: 983 | K35: 658 | L35: 2+347/485 | M35: 91 : 40 | N35: 179 | O35: 438 | Q35: 91 / 2 inex
A36: 1223 | B36: 3321 | C36: 29 | D36: 10 | E36: 365+179224/740583 | F36: =179224/740583 -> 0.2420039347 | G36: 5h 48m 29+3839/27429s | H36: =29+3839/27429 -> 29.13996135 | I36: 41075 | J36: 2987 | K36: 1660 | L36: 2+875/1223 | M36: 1643 : 223 | N36: 25 | O36: 341
A37: 2165 | B37: 5879 | C37: 47 | D37: 18 | E37: 365+12803/52911 | F37: =12803/52911 -> 0.2419723687 | G37: 5h 48m 26+2426/5879s | H37: =26+2426/5879 -> 26.41265521 | I37: 72713 | J37: 1632 | K37: 2939 | L37: 2+1549/2165 | M37: 817 : 9 | N37: 89 | O37: 49
A38: 1817 | B38: 4934 | C38: 41 | D38: 15 | E38: 365+266223/1100282 | F38: =266223/1100282 -> 0.2419588796 | G38: 5h 48m 25+135995/550141s | H38: =25+135995/550141 -> 25.24720026 | I38: 61025 | J38: 3617 | K38: 2467 | L38: 2+1300/1817 | M38: 2441 : 223 | N38: 25 | O38: 341
A39: 2411 | B39: 6547 | C39: 53 | D39: 20 | E39: 365+353222/1459981 | F39: =353222/1459981 -> 0.2419360252 | G39: 5h 48m 23+397957/1459981s | H39: =23+397957/1459981 -> 23.27257683 | I39: 80975 | J39: 5564 | K39: 3273 | L39: 2+1725/2411 | M39: 3239 : 223 | N39: 25 | O39: 341
A40: 833 | B40: 2262 | C40: 17 | D40: 7 | E40: 365+10215/42224 | F40: =10215/42224 -> 0.2419240243 | G40: 5h 48m 22+622/2639s | H40: =22+622/2639 -> 22.23569534 | I40: 27977 | J40: 1613 | K40: 1131 | L40: 2+596/833 | M40: 277 : 56 | N40: 101 | O40: 346
A41: 485 | B41: 1317 | C41: 11 | D41: 4 | E41: 365+12107/50046 | F41: =12107/50046 -> 0.241917436 | G41: 5h 48m 21+5559/8341s | H41: =21+5559/8341 -> 21.66646685 | I41: 16289 | J41: 983 | K41: 658 | L41: 2+347/485 | M41: 91 : 38 | N41: 179 | O41: 416 | Q41: 91 / 2 inex
A42: 1536 | B42: 4171 | C42: 30 | D42: 13 | E42: 365+1009/4171 | F42: =1009/4171 -> 0.2419084152 | G42: 5h 48m 20+3700/4171s | H42: =20+3700/4171 -> 20.88707744 | I42: 51588 | J42: 3207 | K42: 2085 | L42: 2+1099/1536 | M42: 12 : 1 | N42: 4299 | O42: 263 | P42: Yes
A43: 2341 | B43: 6357 | C43: 43 | D43: 20 | E43: 365+1025/4238 | F43: =1025/4238 -> 0.2418593676 | G43: 5h 48m 16+1376/2119s | H43: =16+1376/2119 -> 16.64936291 | I43: 78625 | J43: 2224 | K43: 3178 | L43: 2+1675/2341 | M43: 185 : 2 | N43: 425 | O43: 52
A44: 2837 | B44: 7704 | C44: 41 | D44: 25 | E44: 365+2069/8560 | F44: =2069/8560 -> 0.2417056075 | G44: 5h 48m 3+39/107s | H44: =3+39/107 -> 3.364485981 | I44: 95285 | J44: 3389 | K44: 3852 | L44: 2+2030/2837 | M44: 1121 : 10 | N44: 85 | O44: 52
A45: 1821 | B45: 4945 | C45: 27 | D45: 16 | E45: 365+239/989 | F45: =239/989 -> 0.2416582406 | G45: 5h 47m 59+269/989s | H45: =59+269/989 -> 59.27199191 | I45: 61161 | J45: 926 | K45: 2472 | L45: 2+1303/1821 | M45: 87 : 1 | N45: 703 | O45: 43
A46: 2271 | B46: 6167 | C46: 33 | D46: 20 | E46: 365+47474/196463 | F46: =47474/196463 -> 0.2416434647 | G46: 5h 47m 57+195549/196463s | H46: =57+195549/196463 -> 57.99534772 | I46: 76275 | J46: 5241 | K46: 3083 | L46: 2+1625/2271 | M46: 3051 : 223 | N46: 25 | O46: 341
A47: 1684 | B47: 4573 | C47: 22 | D47: 15 | E47: 365+65/269 | F47: =65/269 -> 0.2416356877 | G47: 5h 47m 57+87/269s | H47: =57+87/269 -> 57.32342007 | I47: 56560 | J47: 3962 | K47: 2286 | L47: 2+1205/1684 | M47: 10 : 1 | N47: 5656 | O47: 346
A48: 1452 | B48: 3943 | C48: 18 | D48: 13 | E48: 365+12385/51259 | F48: =12385/51259 -> 0.2416161064 | G48: 5h 47m 55+32375/51259s | H48: =55+32375/51259 -> 55.6315964 | I48: 48768 | J48: 2425 | K48: 1971 | L48: 2+1039/1452 | M48: 384 : 13 | N48: 127 | O48: 101
A49: 893 | B49: 2425 | C49: 11 | D49: 8 | E49: 365+5273/21825 | F49: =5273/21825 -> 0.2416036655 | G49: 5h 47m 54+54/97s | H49: =54+54/97 -> 54.55670103 | I49: 29993 | J49: 907 | K49: 1212 | L49: 2+639/893 | M49: 337 : 9 | N49: 89 | O49: 49
A50: 1111 | B50: 3017 | C50: 13 | D50: 10 | E50: 365+7289/30170 | F50: =7289/30170 -> 0.2415976135 | G50: 5h 47m 54+102/3017s | H50: =54+102/3017 -> 54.03380842 | I50: 37315 | J50: 2110 | K50: 1508 | L50: 2+795/1111 | M50: 439 : 10 | N50: 85 | O50: 52
A51: 109 | B51: 296 | C51: 2 | D51: 1 | E51: 365+143/592 | F51: =143/592 -> 0.2415540541 | G51: 5h 47m 50+10/37s | H51: =50+10/37 -> 50.27027027 | I51: 3661 | J51: 277 | K51: 148 | L51: 2+78/109 | M51: 7 : 2 | N51: 523 | O51: 64
A52: 3203 | B52: 8698 | C52: 35 | D52: 29 | E52: 365+84039/347920 | F52: =84039/347920 -> 0.2415469073 | G52: 5h 47m 49+2839/4349s | H52: =49+2839/4349 -> 49.65279375 | I52: 107579 | J52: 1499 | K52: 4349 | L52: 2+2292/3203 | M52: 601 : 40 | N52: 179 | O52: 438 | Q52: 601 / 2 inex
A53: 2718 | B53: 7381 | C53: 24 | D53: 25 | E53: 365+7129/29524 | F53: =7129/29524 -> 0.2414645712 | G53: 5h 47m 42+3978/7381s | H53: =42+3978/7381 -> 42.53895136 | I53: 91290 | J53: 7085 | K53: 3690 | L53: 2+1945/2718 | M53: 51 : 4 | N53: 1790 | O53: 438 | Q53: 12+3/4 x 20 = 255 inex
A54: 3203 | B54: 8698 | C54: 35 | D54: 29 | E54: 365+79807/330524 | F54: =79807/330524 -> 0.2414559911 | G54: 5h 47m 41+65909/82631s | H54: =41+65909/82631 -> 41.79763043 | I54: 107579 | J54: 1499 | K54: 4349 | L54: 2+2292/3203 | M54: 601 : 38 | N54: 179 | O54: 416 | Q54: 601 / 2 inex

Sheet Moon
D1: Maximum Months Per Cycle: | E1: 2000 | H1: Length of… | I1: days | J1: months
D2: Count of Cycles Listed Below: | E2: =COUNTIF(C:C,">0") -> 0 | H2: …Short Yerm: | I2: 443 | J2: 15 | K2: =" "&IF(365.25-SYD>LYD-365.25,"leap","common") -> common
D3: Count of Visible Cycles: | E3: =CountVisible("Moon",13,3) -> 0 | H3: …Long Yerm: | I3: 502 | J3: 17 | K3: =" "&IF(365.25-SYD>LYD-365.25,"common","leap") -> leap
G4: Hover here to see Yerms comment
B5: Include: | I5: Longest | J5: Shortest
C6: TRUE | D6: TRUE | H6: Mean Month Limits (fraction >29 days) | I6: 0.5306018519 | J6: 0.5305555556
A10: The mediant fraction between a/c and b/d = (a+b) / (c+d). Circles touch only if bc – ad = 1.
A11: nth | B11: Full | C11: Months | D11: Mixers | F11: Cycle Mean | G11: Mean Month >29 days | I11: Seconds | J11: Days per | L11: Yerm
A12: Order | B12: /cycle | C12: /cycle | D12: 49 | E12: 360 | F12: Month (days) | G12: Decimal | H12: Exact Time | I12: >29d 12h 44m | J12: Cycle | K12: Yerms | L12: Eras | M12: Comments

Sheet Computus
A1: Computus Paschalis Lunisolar Cycles for the following selected Solar Cycle:
B3: Years per | C3: Cycle Mean | D3: Mean Year >365 days | F3: Days per
B4: Solar Cycle | C4: Year (days) | D4: Days | E4: Exact Time | F4: Solar Cycle | H4: 81
B5: 293 | C5: 365+71/293 | D5: =71/293 -> 0.2423208191 | E5: 5h 48m 56+152/293s | F5: 107016
A7: ="All of the following lunisolar cycles have a mean year of exactly "&C5&" days:" -> All of the following lunisolar cycles have a mean year of exactly 365+71/293 days: | F7: (Excel versions prior to 2007 are limited to autofiltering 1000 unique items per column.)
A8: Yerm | B8: Full | C8: Months | D8: Mean Month >29 days | F8: Seconds | G8: Days per | H8: Lunar Cycles | I8: Solar Cycles | J8: Years per | K8: Months per | L8: Days per
A9: Eras | B9: /cycle | C9: /cycle | D9: Decimal | E9: Exact Time | F9: >29d 12h 44m | G9: Lunar Cycle | H9: per Computus | I9: per Computus | J9: Computus | K9: Computus | L9: Computus

Sheet Ford
I1: 03:00:00
A2: 0 | H2: 0.1218836565 | I2: 02:54:32.727
H3: 0.1215526047 | I3: 14.8973315
A4: 1x

Sheet Astro
A1: Astronomical Settings | E1: http://individual.utoronto.ca/kalendis/leap/#ford
B3: Target Year (-1000 to 4000): | C3: 2025
A5: Choose your preferred color codes for best and good matches to equinoctial or solstitial mean solar years:
A6: ("Change" is number of mean solar seconds per century, absolute value <1 is reasonably stable.)
A8: Solar Longitude | B8: Earth Mean Year | F8: Color Codes | H8: Martian Mean
A9: (ecliptic degrees) | B9: (mean solar days) | C9: Time >365d | D9: Change | E9: Description | F9: for Ford chart | H9: Year (mean sols) | I9: Time >668d
A10: 0 | B10: =MeanEqSolstYear(TargetYear,A10) -> 365.242369626285 | C10: =MOD(B10,1) -> 05:49:00.736 | D10: =MeanEqSolstYearChange(TargetYear,A10) -> +0.13 | E10: Green = Northward Equinoctial | F10: Best | G10: Good | H10: 668.5907 | I10: =MOD(H10,1) -> 14:10:36.480
A11: =A10+90 -> 90 | B11: =MeanEqSolstYear(TargetYear,A11) -> 365.241619185872 | C11: =MOD(B11,1) -> 05:47:55.898 | D11: =MeanEqSolstYearChange(TargetYear,A11) -> –0.70 | E11: Red = North Solstitial | F11: Best | G11: Good | H11: 668.5880 | I11: =MOD(H11,1) -> 14:06:43.200
A12: =A11+90 -> 180 | B12: =MeanEqSolstYear(TargetYear,A12) -> 365.242004832457 | C12: =MOD(B12,1) -> 05:48:29.218 | D12: =MeanEqSolstYearChange(TargetYear,A12) -> –2.76 | E12: Brown = Southward Equinoctial | F12: Best | G12: Good | H12: 668.5940 | I12: =MOD(H12,1) -> 14:15:21.600
A13: =A12+90 -> 270 | B13: =MeanEqSolstYear(TargetYear,A13) -> 365.242730274826 | C13: =MOD(B13,1) -> 05:49:31.896 | D13: =MeanEqSolstYearChange(TargetYear,A13) -> –1.85 | E13: Blue = South Solstitial | F13: Best | G13: Good | H13: 668.5958 | I13: =MOD(H13,1) -> 14:17:57.120
H14: "Best" Within: | I14: 20 | J14: seconds
B15: Mean Lunar Month | C15: Time >29 days | H15: "Good" Within: | I15: 60 | J15: seconds
B16: (mean solar days) | C16: HH:MM | D16: Seconds
A17: Synodic Month: | B17: =SynodicMonth(TargetYear) -> 29.5305888 | C17: =INT(MOD(B17,1)*1440)/1440 -> 12:44:00 | D17: =MOD(86400*MOD(B17,1),60) -> 2.87 | E17: mean lunar conjunction interval | F17: Best
A19: Note: Earth equinoctial and solstitial years, and Mean Lunar Month vary with Target Year setting.
A20: (Martian years lengths should also vary over the years, but formula not found yet.)
A22: Source for Martian equinoctial and solsticial years = last paragraph of the following section:
A23: http://en.wikipedia.org/w/index.php?title=Timekeeping_on_Mars#Martian_year
A24: …which is consistent with Figure 3 of page 226 of: Allison M, McEwen M.
A25: "A post-Pathfinder evaluation of areocentric solar coordinates with improved timing recipes for Mars seasonal/diurnal climate studies."
A26: Planetary and Space Science 2000; 48: 215-235.
A27: http://homepage.mac.com/pclwillmott/GAL/2000_Allison_McEwen.pdf

Sheet Eclipse_Cycles
A1: About Eclipse Cycles | G1: http://individual.utoronto.ca/kalendis/leap/#ford
A3: The saros cycle has 223 mean synodic months, about 242 draconic months, 239 anomalistic months, or about 18 years 11+1/3 days.
A4: One saros later an eclipse repeats under similar conditions but 1/3 of the way (120°) further west around the globe and about 1000/3 km further north
A5: or further south, depending on whether the series started at the south pole (ascending lunar node) or north pole (descending lunar node), respectively.
A6: The exeligmos cycle is 3 saros cycles, containing almost an integer number of days (19756).
A7: One exeligmos later an eclipse repeats approximately 1000 km further north or further south, depending on whether the series started at the south or north pole, respectively.
A8: The inex cycle has 358 mean synodic months, almost exactly 388+1/2 draconic months, about 383+2/3 anomalistic months, or 30+1/2 draconic years.
A9: One inex later an eclipse repeats under similar conditions but at the opposite lunar orbital node (hence opposite terrestrial latitude).
A10: Inex eclipse series are much longer-lasting than saros series. A triad cycle is 3 inex cycles, containing nearly an integer number of anomalistic months (1151).
A12: The "Lunar" worksheet can show which cycles are multiples of the saros or inex, but the shortest such cycle, when comprised of a smoothly spread mix of
A13: full 30-day and deficient 29-day months, is the 19-saros cycle of 4237 months. The number eclipse cycles found increases with the maximum denominator:
A15: Maximum | B15: Lunar | C15: Saros | D15: Exeligmos | E15: Inex
A16: Denominator | B16: Cycles | C16: Cycles | D16: Cycles | E16: Cycles
A17: 2000 | B17: 76 | C17: 0 | D17: 0 | E17: 0
A18: 4000 | B18: 238 | C18: 0 | D18: 0 | E18: 0
A19: 5000 | B19: 365 | C19: 2 | D19: 0 | E19: 0
A20: 6000 | B20: 519 | C20: 3 | D20: 0 | E20: 1
A21: 8000 | B21: 914 | C21: 7 | D21: 0 | E21: 12
A22: 10000 | B22: 1422 | C22: 8 | D22: 0 | E22: 12
A23: 20000 | B23: 5644 | C23: 26 | D23: 8 | E23: 32
A24: 30000 | B24: 12673 | C24: 58 | D24: 16 | E24: 70
A26: A Ford chart with lunar cycles up to a maximum
A27: denominator of 8000 months can be plotted without
A28: errors, but it will probably take more than a minute,
A29: the resulting plot will be extremely dense, and many
A30: of the cycle legends will wrap onto a second line.

Sheet PlotData

Sheet Legend

Sheet Desc

Sheet Factors
A1: Factorization of Integers
A3: It may be helpful to find the integer divisors of the number of years per leap cycle, number of days per cycle, etc.
A5: For that purpose, this spreadsheet include a macro Divisors( ) function.
A7: Syntax and how to use the Divisors macro function:
A9: =Divisors( TheNumber {, FlagPrimes } )
A11: The values for the optional FlagPrimes parameter are:
A12: 1 | B12: Return all Divisors, with flagged primes (default).
A13: 0 | B13: Return all Divisors without flagging primes
A14: -1 | B14: Return primes divisors only (factorize) and flag all as primes.
A15: -2 | B15: (or any value <-1) Return prime divisors only (factorize) but don't flag as primes.
A17: See examples below:
A19: Number | B19: FlagPrimes | C19: Syntax | D19: Result
A20: 3150 | B20: 0 | C20: ="=Divisors("&A20&","&B20&")" -> =Divisors(3150,0) | D20: =divisors(A20,B20) -> 2, 3, 5, 6, 7, 9, 10, 14, 15, 18, 21, 25, 30, 35, 42, 45, 50, 63, 70, 75, 90, 105, 126, 150, 175, 210, 225, 315, 350, 450, 525, 630, 1050, 1575, 3150
A21: 3150 | B21: 1 | C21: =Divisors(3150,1) | D21: =divisors(A21,B21) -> 2', 3', 5', 6, 7', 9, 10, 14, 15, 18, 21, 25, 30, 35, 42, 45, 50, 63, 70, 75, 90, 105, 126, 150, 175, 210, 225, 315, 350, 450, 525, 630, 1050, 1575, 3150
A22: 3150 | B22: -1 | C22: =Divisors(3150,-1) | D22: =divisors(A22,B22) -> 2', 3', 5', 7', 3150
A23: 3150 | B23: -2 | C23: =Divisors(3150,-2) | D23: =divisors(A23,B23) -> 2, 3, 5, 7, 3150
A24: 293 | B24: 1 | C24: =Divisors(293,1) | D24: =divisors(A24,B24) -> 293'
A25: 1803 | B25: 1 | C25: =Divisors(1803,1) | D25: =divisors(A25,B25) -> 3', 601', 1803
A26: 5575 | B26: 1 | C26: =Divisors(5575,1) | D26: 5', 25, 223', 1115, 5575
A27: 22300 | B27: 1 | C27: =Divisors(22300,1) | D27: 2', 4, 5', 10, 20, 25, 50, 100, 223', 446, 892, 1115, 2230, 4460, 5575, 11150, 22300
